fUST/lending_fUST_20250201
["ID","MTS","AMOUNT","RATE_DAILY","PERIOD"]
[351107342,1738339847244,-5022.85,0.00016712,2]
[351107344,1738339847253,-687.94873222,0.00016749,2]
[351107346,1738339847262,-1219.21,0.00016813,2]
[351107348,1738339847271,-500.0,0.00016848,2]
[351107350,1738339847280,-1219.21,0.00016848,2]
[351107351,1738339847290,-2734.51,0.00016848,2]
[351107352,1738339847299,-500.0,0.00016849,2]
[351107353,1738339847308,-500.0,0.00016849,2]
[351107354,1738339847317,-2628.18,0.00016849,2]
[351107355,1738339847326,-1638.97,0.00016849,2]
[351107356,1738339847337,-500.0,0.00016849,2]
[351107357,1738339847346,-500.0,0.00016849,2]
[351107358,1738339847356,-515.04,0.00016849,2]
[351107359,1738339847365,-704.28,0.00016849,2]
[351107360,1738339847374,-500.0,0.00016849,2]
[351107361,1738339847383,-500.0,0.00016849,2]
[351107362,1738339847392,-500.0,0.00016849,2]
[351107363,1738339847402,-500.0,0.00016849,2]
[351107364,1738339847411,-847.51,0.00016849,2]
[351107365,1738339847421,-500.0,0.00016849,2]
[351107366,1738339847430,-8174.12,0.00016849,2]
[351107367,1738339847439,-500.0,0.00016849,2]
[351107368,1738339847448,-500.0,0.00016849,2]
[351107369,1738339847457,-500.0,0.00016849,2]
[351107370,1738339847466,-283.28,0.00016849,2]
[351107371,1738339847475,-500.0,0.00016849,2]
[351107372,1738339847484,-500.0,0.00016849,2]
[351107373,1738339847494,-500.0,0.00016849,2]
[351107374,1738339847503,-348.27475799,0.00016849,2]
[351107375,1738339847512,-500.0,0.00016849,2]
[351107377,1738339847521,-500.0,0.00016849,2]
[351107378,1738339847531,-522.7,0.00016849,2]
[351107380,1738339847540,-500.0,0.00016849,2]
[351107382,1738339847549,-500.0,0.00016849,2]
[351107384,1738339847558,-500.0,0.00016849,2]
[351107386,1738339847567,-500.0,0.00016849,2]
[351107387,1738339847577,-5022.85,0.00016849,2]
[351107389,1738339847586,-841.46935405,0.000169,2]
[351107392,1738339847596,-12012.85078401,0.00016954,2]
[351107394,1738339847605,-1219.21,0.00016972,2]
[351107395,1738339847614,-438.90738582,0.00016973,2]
[351107398,1738339847624,-502.40740655,0.00016973,2]
[351107399,1738339847633,-500.0,0.00016973,2]
[351107402,1738339847642,-500.0,0.00016973,2]
[351107403,1738339847652,-500.0,0.00016973,2]
[351107405,1738339847661,-534.99484798,0.00016985,2]
[351107408,1738339847671,-1219.21,0.00016985,2]
[351107409,1738339847680,-2734.51,0.00016985,2]
[351107411,1738339847690,-500.0,0.00016986,2]
[351107413,1738339847702,-500.0,0.00016986,2]
[351107415,1738339847712,-2628.18,0.00016986,2]
[351107417,1738339847721,-1638.97,0.00016986,2]
[351107419,1738339847730,-500.0,0.00016986,2]
[351107421,1738339847741,-500.0,0.00016986,2]
[351107423,1738339847751,-515.04,0.00016986,2]
[351107426,1738339847760,-704.28,0.00016986,2]
[351107427,1738339847769,-500.0,0.00016986,2]
[351107429,1738339847781,-500.0,0.00016986,2]
[351107432,1738339847791,-260.71602335,0.00016986,2]
[351107433,1738339847801,-500.0,0.00016986,2]
[351107436,1738339847810,-847.51,0.00016986,2]
[351107437,1738339847820,-500.0,0.00016986,2]
[351107440,1738339847829,-8174.12,0.00016986,2]
[351107442,1738339847843,-500.0,0.00016986,2]
[351107443,1738339847852,-404.32,0.00016986,2]
[351107445,1738339847861,-500.0,0.00016986,2]
[351107447,1738339847870,-500.0,0.00016986,2]
[351107449,1738339847880,-500.0,0.00016986,2]
[351107452,1738339847890,-500.0,0.00016986,2]
[351107454,1738339847899,-500.0,0.00016986,2]
[351107456,1738339847912,-500.0,0.00016986,2]
[351107458,1738339847923,-522.7,0.00016986,2]
[351107460,1738339847933,-500.0,0.00016986,2]
[351107462,1738339847942,-500.0,0.00016986,2]
[351107464,1738339847953,-500.0,0.00016986,2]
[351107466,1738339847962,-2734.51,0.00016997,2]
[351107468,1738339847972,-500.0,0.00016998,2]
[351107470,1738339847982,-1219.21,0.00016998,2]
[351107472,1738339847991,-1219.21,0.00016998,2]
[351107474,1738339848000,-1219.21,0.00016998,2]
[351107476,1738339848010,-1219.21,0.00016998,2]
[351107478,1738339848020,-1219.21,0.00016998,2]
[351107480,1738339848030,-1219.29899773,0.00016998,2]
[351107482,1738339848040,-2734.51,0.00016998,2]
[351107484,1738339848050,-2734.51,0.00016998,2]
[351107486,1738339848060,-2734.51,0.00016998,2]
[351107488,1738339848070,-500.96109735,0.00016999,2]
[351107490,1738339848079,-500.0,0.00016999,2]
[351107492,1738339848089,-165.69414343,0.00016999,2]
[351107493,1738339848099,-184.65954905,0.00016999,2]
[351107495,1738339848109,-506.48019941,0.00016999,2]
[351107497,1738339848119,-507.8524113,0.00016999,2]
[351107499,1738339848129,-500.0,0.00016999,2]
[351107501,1738339848138,-500.0,0.00016999,2]
[351107503,1738339848147,-500.0,0.00016999,2]
[351107505,1738339848160,-500.0,0.00016999,2]
[351107507,1738339848170,-500.0,0.00016999,2]
[351107509,1738339848180,-500.0,0.00016999,2]
[351107511,1738339848190,-500.0,0.00016999,2]
[351107513,1738339848200,-500.0,0.00016999,2]
[351107515,1738339848210,-500.0,0.00016999,2]
[351107517,1738339848220,-500.0,0.00016999,2]
[351107519,1738339848230,-500.0,0.00016999,2]
[351107520,1738339848240,-500.46247953,0.00016999,2]
[351107522,1738339848250,-500.0,0.00016999,2]
[351107524,1738339848260,-501.15732805,0.00016999,2]
[351107526,1738339848270,-500.0,0.00016999,2]
[351107529,1738339848280,-504.5115558,0.00016999,2]
[351107530,1738339848289,-200.9,0.00016999,2]
[351107532,1738339848299,-500.22358036,0.00016999,2]
[351107535,1738339848310,-500.0,0.00016999,2]
[351107536,1738339848320,-500.0,0.00016999,2]
[351107538,1738339848330,-500.0,0.00016999,2]
[351107540,1738339848340,-500.0,0.00016999,2]
[351107542,1738339848350,-500.0,0.00016999,2]
[351107544,1738339848360,-500.0,0.00016999,2]
[351107546,1738339848370,-500.0,0.00016999,2]
[351107548,1738339848380,-500.0,0.00016999,2]
[351107551,1738339848390,-500.0,0.00016999,2]
[351107552,1738339848400,-530.1,0.00016999,2]
[351107554,1738339848415,-500.0,0.00016999,2]
[351107557,1738339848425,-500.0,0.00016999,2]
[351107559,1738339848435,-500.0,0.00016999,2]
[351107561,1738339848446,-522.25356358,0.00016999,2]
[351107563,1738339848455,-500.0,0.00016999,2]
[351107565,1738339848465,-406.03795876,0.00016999,2]
[351107567,1738339848474,-500.0,0.00016999,2]
[351107569,1738339848484,-305.53560276,0.00016999,2]
[351107571,1738339848495,-500.0,0.00016999,2]
[351107573,1738339848505,-577.25786942,0.00016999,2]
[351107574,1738339848515,-500.0,0.00016999,2]
[351107576,1738339848524,-500.0,0.00016999,2]
[351107578,1738339848533,-503.75995048,0.00016999,2]
[351107580,1738339848543,-500.0,0.00016999,2]
[351107582,1738339848553,-500.0,0.00016999,2]
[351107584,1738339848562,-500.0,0.00016999,2]
[351107586,1738339848571,-2734.51,0.00016999,2]
[351107588,1738339848581,-2734.51,0.00016999,2]
[351107590,1738339848590,-2734.51,0.00016999,2]
[351107592,1738339848600,-2734.51,0.00016999,2]
[351107594,1738339848610,-2734.51,0.00016999,2]
[351107596,1738339848619,-2734.51,0.00016999,2]
[351107598,1738339848629,-2734.51,0.00016999,2]
[351107600,1738339848638,-2734.59569254,0.00016999,2]
[351107602,1738339848647,-500.0,0.00016999,2]
[351107604,1738339848659,-500.0,0.00016999,2]
[351107606,1738339848668,-500.0,0.00016999,2]
[351107608,1738339848677,-500.0,0.00016999,2]
[351107610,1738339848687,-97150.01390785,0.00017,2]
[351107612,1738339848702,-1000.0,0.00017,17]
[351107614,1738339848711,-151.0,0.00017,2]
[351107616,1738339848721,-151.0,0.00017,2]
[351107618,1738339848732,-151.0,0.00017,2]
[351107621,1738339848743,-151.0,0.00017,2]
[351107622,1738339848752,-153.002688,0.00017,2]
[351107625,1738339848762,-151.0,0.00017,2]
[351107627,1738339848774,-151.0,0.00017,2]
[351107637,1738339848859,-151.0,0.00017,2]
[351107640,1738339848879,-153.581151,0.00017,2]
[351107641,1738339848890,-259.246906,0.00017,2]
[351107644,1738339848900,-151.0,0.00017,2]
[351107646,1738339848912,-151.0,0.00017,2]
[351107648,1738339848922,-189.051764,0.00017,2]
[351107650,1738339848931,-151.0,0.00017,2]
[351107652,1738339848941,-151.0,0.00017,2]
[351107653,1738339848950,-151.0,0.00017,2]
[351107655,1738339848960,-151.0,0.00017,2]
[351107657,1738339848970,-151.0,0.00017,2]
[351107659,1738339848980,-841.46935388,0.00017107,2]
[351107661,1738339848989,-500.0,0.00017123,2]
[351107663,1738339848999,-500.0,0.00017123,2]
[351107665,1738339849008,-2628.18,0.00017123,2]
[351107668,1738339849018,-151.0,0.00017123,2]
[351107670,1738339849027,-157.505833,0.00017123,2]
[351107672,1738339849037,-157.505833,0.00017123,2]
[351107674,1738339849046,-1638.97,0.00017123,2]
[351107675,1738339849055,-500.0,0.00017123,2]
[351107677,1738339849065,-500.0,0.00017123,2]
[351107679,1738339849074,-515.04,0.00017123,2]
[351107681,1738339849083,-704.28,0.00017123,2]
[351107683,1738339849093,-500.0,0.00017123,2]
[351107685,1738339849103,-500.0,0.00017123,2]
[351107687,1738339849112,-500.0,0.00017123,2]
[351107689,1738339849121,-595.11932002,0.00017123,2]
[351107691,1738339849131,-8174.12,0.00017123,2]
[351107693,1738339849140,-500.0,0.00017123,2]
[351107695,1738339849149,-360.49850878,0.00017123,2]
[351107697,1738339849162,-500.0,0.00017123,2]
[351107699,1738339849171,-500.0,0.00017123,2]
[351107701,1738339849181,-500.0,0.00017123,2]
[351107703,1738339849192,-500.0,0.00017123,2]
[351107706,1738339849203,-500.0,0.00017123,2]
[351107708,1738339849213,-522.7,0.00017123,2]
[351107709,1738339849223,-500.0,0.00017123,2]
[351107711,1738339849233,-325.54,0.00017123,2]
[351107713,1738339849243,-500.0,0.00017123,2]
[351107715,1738339849252,-636.89698287,0.00017136,2]
[351107717,1738339849263,-158.37773266,0.00017136,2]
[351107720,1738339849273,-500.0,0.00017136,2]
[351107721,1738339849282,-500.0,0.00017136,2]
[351107723,1738339849292,-500.0,0.00017136,2]
[351107725,1738339849301,-604.93716432,0.00017136,2]
[351107727,1738339849311,-510.41015913,0.00017136,2]
[351107729,1738339849320,-498.26494124,0.00017136,2]
[351107731,1738339849329,-500.0,0.00017136,2]
[351107733,1738339849340,-501.34495812,0.00017136,2]
[351107735,1738339849350,-500.0,0.00017136,2]
[351107737,1738339849359,-528.13514486,0.00017136,2]
[351107739,1738339849368,-500.0,0.00017136,2]
[351107741,1738339849378,-500.0,0.00017136,2]
[351107743,1738339849388,-500.0,0.00017136,2]
[351107745,1738339849397,-500.0,0.00017136,2]
[351107747,1738339849409,-500.0,0.00017136,2]
[351107749,1738339849419,-500.0,0.00017136,2]
[351107751,1738339849428,-500.0,0.00017136,2]
[351107753,1738339849438,-500.0,0.00017136,2]
[351107755,1738339849448,-500.0,0.00017136,2]
[351107757,1738339849457,-500.0,0.00017136,2]
[351107759,1738339849467,-261.365,0.00017219,2]
[351107761,1738339849476,-2042.0,0.00017219,2]
[351107763,1738339849485,-539.422,0.00017219,2]
[351107765,1738339849494,-2303.0,0.00017219,2]
[351107767,1738339849503,-354.392988,0.00017233,2]
[351107769,1738339849513,-354.392988,0.00017233,2]
[351107771,1738339849523,-247.3468623,0.00017233,2]
[351107773,1738339849533,-500.0,0.0001726,2]
[351107775,1738339849542,-508.76,0.0001726,2]
[351107777,1738339849553,-2628.18,0.0001726,2]
[351107779,1738339849563,-1638.97,0.0001726,2]
[351107781,1738339849572,-500.0,0.0001726,2]
[351107783,1738339849582,-515.04,0.0001726,2]
[351107785,1738339849592,-704.28,0.0001726,2]
[351107787,1738339849602,-500.0,0.0001726,2]
[351107789,1738339849612,-500.0,0.0001726,2]
[351107791,1738339849621,-500.0,0.0001726,2]
[351107793,1738339849631,-8174.12,0.0001726,2]
[351107795,1738339849641,-500.0,0.0001726,2]
[351107797,1738339849651,-500.0,0.0001726,2]
[351107799,1738339849663,-500.0,0.0001726,2]
[351107801,1738339849673,-500.0,0.0001726,2]
[351107803,1738339849682,-500.0,0.0001726,2]
[351107805,1738339849692,-500.0,0.0001726,2]
[351107807,1738339849702,-522.7,0.0001726,2]
[351107809,1738339849715,-500.0,0.0001726,2]
[351107811,1738339849726,-500.0,0.0001726,2]
[351107813,1738339849736,-500.0,0.00017273,2]
[351107815,1738339849747,-9537.28,0.000173,2]
[351107817,1738339849757,-7663.66,0.000173,2]
[351107819,1738339849766,-841.46935388,0.00017314,2]
[351107821,1738339849775,-396.0,0.00017352,2]
[351107824,1738339849786,-321.97653869,0.00017397,2]
[351107826,1738339849796,-2628.18,0.00017397,2]
[351107828,1738339849809,-1638.97,0.00017397,2]
[351107829,1738339849823,-500.0,0.00017397,2]
[351107832,1738339849833,-515.04,0.00017397,2]
[351107833,1738339849843,-704.28,0.00017397,2]
[351107835,1738339849854,-500.0,0.00017397,2]
[351107838,1738339849864,-500.0,0.00017397,2]
[351107840,1738339849876,-500.0,0.00017397,2]
[351107842,1738339849888,-8174.12,0.00017397,2]
[351107843,1738339849900,-500.0,0.00017397,2]
[351107845,1738339849910,-500.0,0.00017397,2]
[351107847,1738339849920,-500.0,0.00017397,2]
[351107849,1738339849929,-481.16,0.00017397,2]
[351107851,1738339849939,-500.0,0.00017397,2]
[351107853,1738339849953,-500.0,0.00017397,2]
[351107855,1738339849965,-500.0,0.00017397,2]
[351107857,1738339849980,-522.7,0.00017397,2]
[351107859,1738339849990,-500.0,0.00017397,2]
[351107861,1738339850000,-841.46935388,0.00017521,2]
[351107863,1738339850010,-2628.18,0.00017534,2]
[351107865,1738339850020,-1638.97,0.00017534,2]
[351107867,1738339850030,-500.0,0.00017534,2]
[351107869,1738339850040,-515.04,0.00017534,2]
[351107871,1738339850050,-704.28,0.00017534,2]
[351107873,1738339850059,-341.7,0.00017534,2]
[351107875,1738339850068,-306.56,0.00017534,2]
[351107877,1738339850078,-500.0,0.00017534,2]
[351107879,1738339850087,-8174.12,0.00017534,2]
[351107881,1738339850096,-500.0,0.00017534,2]
[351107883,1738339850105,-500.0,0.00017534,2]
[351107885,1738339850116,-500.0,0.00017534,2]
[351107887,1738339850125,-500.0,0.00017534,2]
[351107889,1738339850135,-500.0,0.00017534,2]
[351107891,1738339850145,-500.0,0.00017534,2]
[351107893,1738339850154,-522.7,0.00017534,2]
[351107895,1738339850164,-500.0,0.00017534,2]
[351107897,1738339850174,-371.918714,0.00017534,2]
[351107899,1738339850183,-2628.18,0.00017671,2]
[351107901,1738339850192,-1638.97,0.00017671,2]
[351107903,1738339850203,-500.0,0.00017671,2]
[351107906,1738339850212,-515.04,0.00017671,2]
[351107907,1738339850222,-704.28,0.00017671,2]
[351107910,1738339850231,-500.0,0.00017671,2]
[351107911,1738339850240,-8174.12,0.00017671,2]
[351107914,1738339850250,-500.0,0.00017671,2]
[351107916,1738339850260,-500.0,0.00017671,2]
[351107917,1738339850273,-500.0,0.00017671,2]
[351107920,1738339850282,-366.44,0.00017671,2]
[351107921,1738339850292,-500.0,0.00017671,2]
[351107923,1738339850301,-500.0,0.00017671,2]
[351107925,1738339850310,-522.7,0.00017671,2]
[351107926,1738339850319,-500.0,0.00017671,2]
[351107928,1738339850329,-151.0,0.000177,2]
[351107930,1738339850338,-621.0,0.000177,2]
[351107932,1738339850348,-800.0,0.00017726,2]
[351107934,1738339850357,-841.46935388,0.00017728,2]
[351107936,1738339850366,-151.0,0.000178,2]
[351107937,1738339850376,-151.0,0.00017808,2]
[351107939,1738339850387,-151.0,0.00017808,2]
[351107941,1738339850397,-151.0,0.00017808,2]
[351107943,1738339850408,-151.0,0.00017808,2]
[351107945,1738339850417,-2628.18,0.00017808,2]
[351107946,1738339850426,-1638.97,0.00017808,2]
[351107948,1738339850435,-151.0,0.00017808,2]
[351107950,1738339850445,-500.0,0.00017808,2]
[351107952,1738339850455,-515.04,0.00017808,2]
[351107954,1738339850466,-704.28,0.00017808,2]
[351107955,1738339850476,-151.0,0.00017808,2]
[351107957,1738339850487,-151.0,0.00017808,2]
[351107959,1738339850496,-151.0,0.00017808,2]
[351107961,1738339850505,-151.0,0.00017808,2]
[351107963,1738339850515,-500.0,0.00017808,2]
[351107965,1738339850524,-151.0,0.00017808,2]
[351107966,1738339850534,-8174.12,0.00017808,2]
[351107968,1738339850543,-500.0,0.00017808,2]
[351107976,1738339850633,-151.0,0.00017808,2]
[351107978,1738339850645,-500.0,0.00017808,2]
[351107980,1738339850656,-500.0,0.00017808,2]
[351107982,1738339850667,-500.0,0.00017808,2]
[351107984,1738339850676,-500.0,0.00017808,2]
[351107986,1738339850686,-151.0,0.00017808,2]
[351107988,1738339850698,-522.7,0.00017808,2]
[351107990,1738339850709,-151.0,0.00017808,2]
[351107991,1738339850719,-151.0,0.00017808,2]
[351107993,1738339850728,-151.0,0.00017808,2]
[351107995,1738339850739,-500.0,0.00017808,2]
[351107997,1738339850749,-151.0,0.00017808,2]
[351107999,1738339850758,-151.0,0.00017821,2]
[351108001,1738339850768,-660.907882,0.00017821,2]
[351108002,1738339850778,-660.907882,0.00017821,2]
[351108004,1738339850790,-229.339053,0.00017821,2]
[351108006,1738339850799,-229.339053,0.00017821,2]
[351108008,1738339850808,-841.46935388,0.00017934,2]
[351108010,1738339850818,-2628.18,0.00017945,2]
[351108012,1738339850828,-151.0,0.00017945,2]
[351108014,1738339850838,-157.505833,0.00017945,2]
[351108016,1738339850847,-157.505833,0.00017945,2]
[351108017,1738339850857,-1638.97,0.00017945,2]
[351108019,1738339850868,-500.0,0.00017945,2]
[351108021,1738339850878,-515.04,0.00017945,2]
[351108023,1738339850888,-704.28,0.00017945,2]
[351108025,1738339850897,-500.0,0.00017945,2]
[351108027,1738339850907,-6503.48934415,0.00017945,2]
[351108030,1738339850929,-1670.63065585,0.00017945,2]
[351108032,1738339850938,-500.0,0.00017945,2]
[351108033,1738339850948,-500.0,0.00017945,2]
[351108035,1738339850957,-584.11,0.00017945,2]
[351108037,1738339850967,-500.0,0.00017945,2]
[351108039,1738339850976,-500.0,0.00017945,2]
[351108041,1738339850985,-522.7,0.00017945,2]
[351108043,1738339850995,-500.0,0.00017945,2]
[351108044,1738339851004,-151.0,0.00017958,2]
[351108046,1738339851013,-151.0,0.00017958,2]
[351108048,1738339851023,-151.0,0.00017958,2]
[351108050,1738339851032,-151.0,0.00017958,2]
[351108052,1738339851043,-420.0,0.00017962,2]
[351108054,1738339851052,-1000.0,0.00018,18]
[351108056,1738339851061,-151.0,0.00018,2]
[351108058,1738339851071,-2628.18,0.00018082,2]
[351108060,1738339851081,-1638.97,0.00018082,2]
[351108061,1738339851091,-500.0,0.00018082,2]
[351108063,1738339851100,-515.04,0.00018082,2]
[351108065,1738339851110,-704.28,0.00018082,2]
[351108067,1738339851119,-500.0,0.00018082,2]
[351108069,1738339851129,-8174.12,0.00018082,2]
[351108071,1738339851139,-500.0,0.00018082,2]
[351108073,1738339851148,-500.0,0.00018082,2]
[351108074,1738339851158,-500.0,0.00018082,2]
[351108076,1738339851167,-500.0,0.00018082,2]
[351108078,1738339851176,-522.7,0.00018082,2]
[351108080,1738339851187,-500.0,0.00018082,2]
[351108082,1738339851198,-297.0,0.0001809,2]
[351108084,1738339851207,-151.0,0.00018095,2]
[351108086,1738339851216,-151.0,0.00018095,2]
[351108088,1738339851224,-4986.1684503,0.000181,2]
[351108090,1738339851234,-841.46935388,0.00018141,2]
[351108091,1738339851243,-500.0,0.00018173,2]
[351108093,1738339851253,-500.70828839,0.00018173,2]
[351108095,1738339851262,-500.0,0.00018173,2]
[351108097,1738339851271,-354.392988,0.00018192,2]
[351108099,1738339851281,-354.392988,0.00018192,2]
[351108101,1738339851290,-354.392988,0.00018192,2]
[351108103,1738339851299,-354.392988,0.00018192,2]
[351108105,1738339851309,-353.857978,0.00018192,2]
[351108107,1738339851320,-151.0,0.00018199,2]
[351108109,1738339851330,-151.0,0.00018199,2]
[351108110,1738339851339,-151.0,0.00018199,2]
[351108112,1738339851349,-50698.51304641,0.000182,15]
[351108127,1738339851496,-504.55342571,0.00016438,2]
[351108129,1738339851505,-127.62657429,0.00016438,2]
[351108131,1738339851516,-372.37342571,0.00016438,2]
[351108133,1738339851525,-500.0,0.00016438,2]
[351108135,1738339851535,-500.0,0.00016438,2]
[351108137,1738339851545,-500.0,0.00016575,2]
[351108139,1738339851554,-500.0,0.00016575,2]
[351108141,1738339851564,-500.0,0.00016712,2]
[351108142,1738339851573,-500.0,0.00016712,2]
[351108144,1738339851583,-500.0,0.00016849,2]
[351108146,1738339851592,-500.0,0.00016849,2]
[351108148,1738339851602,-5022.85,0.00016986,2]
[351108150,1738339851611,-500.0,0.00016986,2]
[351108152,1738339851621,-500.0,0.00016986,2]
[351108154,1738339851630,-5022.85,0.00017123,2]
[351108156,1738339851639,-500.0,0.00017123,2]
[351108157,1738339851648,-500.0,0.00017123,2]
[351108159,1738339851657,-5022.85,0.0001726,2]
[351108161,1738339851667,-500.0,0.0001726,2]
[351108163,1738339851676,-5022.85,0.00017397,2]
[351108164,1738339851685,-500.0,0.00017397,2]
[351108166,1738339851695,-5022.85,0.00017534,2]
[351108168,1738339851705,-5022.85,0.00017671,2]
[351108170,1738339851716,-48751.38301071,0.000182,15]
[351108173,1738339851738,-500.0,0.00017534,2]
[351108175,1738339851747,-5022.85,0.00017808,2]
[351108177,1738339851756,-28777.1500001,0.000182,15]
[351108192,1738339851912,-503.9114989,0.00016438,2]
[351108194,1738339851922,-503.79687182,0.00016575,2]
[351108196,1738339851932,-500.0,0.00016575,2]
[351108198,1738339851942,-234.27252423,0.0001726,2]
[351108200,1738339851952,-500.0,0.00017671,2]
[351108202,1738339851961,-500.0,0.00017808,2]
[351108203,1738339851970,-1960.09151475,0.00017945,2]
[351108237,1738339852331,-500.0,0.00016438,2]
[351108239,1738339852341,-500.0,0.00016438,2]
[351108241,1738339852350,-500.0,0.00016575,2]
[351108243,1738339852360,-10.705754,0.00016712,2]
[351108245,1738339852372,-429.21132584,0.00016712,2]
[351108247,1738339852382,-500.0,0.00016712,2]
[351108249,1738339852391,-500.0,0.00016849,2]
[351108251,1738339852400,-500.0,0.00016986,2]
[351108253,1738339852410,-500.0,0.00016999,2]
[351108255,1738339852419,-641.99715305,0.00017136,2]
[351108256,1738339852428,-3062.75848525,0.00017945,2]
[351108258,1738339852438,-500.0,0.00017945,2]
[351108260,1738339852447,-5022.85,0.00018082,2]
[351108262,1738339852457,-500.0,0.00018082,2]
[351108264,1738339852467,-1546.18303586,0.000182,15]
[351108267,1738339852483,-3644.41823457,0.000182,15]
[351108269,1738339852495,-145470.18653961,0.000182,15]
[351108271,1738339852513,-493992.29161301,0.000182,15]
[351108295,1738339852761,-500.0,0.00016438,2]
[351108297,1738339852771,-500.0,0.00016438,2]
[351108299,1738339852782,-500.0,0.00016438,2]
[351108301,1738339852791,-500.0,0.00016575,2]
[351108303,1738339852801,-500.0,0.00016575,2]
[351108305,1738339852810,-500.0,0.00016712,2]
[351108307,1738339852819,-500.0,0.00016712,2]
[351108309,1738339852828,-500.0,0.00016849,2]
[351108311,1738339852837,-500.0,0.00016986,2]
[351108313,1738339852846,-151.0,0.00016999,2]
[351108314,1738339852856,-34620.70971934,0.000182,15]
[351108894,1738340491423,289.623209,0.00013973,2]
[351108895,1738340549340,177.046526,0.00013699,2]
[351108903,1738340826357,3633.3312761,0.0001506,2]
[351108980,1738341032140,-194.5604604,0.00015154,2]
[351108981,1738341032150,-273.3047912,0.00015168,2]
[351108982,1738341032160,-300.0,0.00015386,2]
[351108983,1738341032170,-14289.7325256,0.00015387,2]
[351108984,1738341032181,-1995.4797289,0.00015413,2]
[351108985,1738341032189,-4550.78288803,0.00016,2]
[351108986,1738341032199,-3528.46169701,0.00016,2]
[351108987,1738341032208,-724.70709503,0.00016256,2]
[351108988,1738341032217,-14294.98400003,0.00016312,2]
[351108989,1738341032226,-800.0,0.00016356,2]
[351108990,1738341032236,-151.0,0.000164,2]
[351108991,1738341032245,-500.0,0.00016437,2]
[351108992,1738341032256,-500.0,0.00016437,2]
[351108993,1738341032265,-500.0,0.00016437,2]
[351108994,1738341032275,-500.0,0.00016437,2]
[351108995,1738341032285,-500.0,0.00016437,2]
[351108996,1738341032294,-540.32924651,0.00016437,2]
[351108997,1738341032304,-211.31826804,0.00016437,2]
[351108998,1738341032315,-500.0,0.00016437,2]
[351108999,1738341032324,-489.88864023,0.00016437,2]
[351109000,1738341032333,-500.0,0.00016438,2]
[351109002,1738341032343,-500.0,0.00016438,2]
[351109004,1738341032352,-502.69434425,0.00016438,2]
[351109005,1738341032361,-500.0,0.00016438,2]
[351109006,1738341032370,-500.0,0.00016438,2]
[351109007,1738341032380,-500.0,0.00016438,2]
[351109008,1738341032389,-500.0,0.00016438,2]
[351109009,1738341032399,-500.0,0.00016438,2]
[351109010,1738341032408,-500.0,0.00016438,2]
[351109011,1738341032418,-500.0,0.00016438,2]
[351109012,1738341032427,-500.0,0.00016438,2]
[351109013,1738341032437,-500.0,0.00016438,2]
[351109014,1738341032446,-500.0,0.00016438,2]
[351109015,1738341032455,-500.0,0.00016438,2]
[351109016,1738341032465,-500.0,0.00016438,2]